{"text_format":"1","workbook":"xlsx","n_sheets":3,"sheets":["★（小学校１、２年）","★（小学校３、４、５、6年）","★（中学生）"],"not_rendered":{"charts":3,"images":0,"macros":1,"external_links":0,"defined_names":6,"comments":0,"pivot_tables":0},"unopened":[],"bounds":{"document_bytes":16777216,"sheet_cells":100000,"rows_first":2000,"rows_last":500,"rows_between":2000,"halvings":0,"cell_chars":16384,"cell_head_chars":4096},"cells_cut":0,"cells_raw":0,"read":"whole","date_system":"1900"}

{"sheet":"★（小学校１、２年）","index":0,"n_rows":49,"n_cols":24,"rows_kept":49,"cut":false,"hidden":false,"merged":[[9,10,11,10],[10,2,10,4],[11,2,11,4],[1,0,1,2],[1,5,1,9],[2,0,2,7],[2,9,2,10],[3,0,3,10],[5,1,5,9],[7,5,7,9],[8,0,8,1],[8,2,8,4],[9,0,11,0],[9,2,9,4],[15,0,17,0],[15,2,15,4],[15,10,17,10],[16,2,16,4],[17,2,17,4],[12,0,14,0],[12,2,12,4],[12,10,14,10],[13,2,13,4],[14,2,14,4],[21,0,23,0],[21,2,21,4],[21,10,23,10],[22,2,22,4],[23,2,23,4],[18,0,20,0],[18,2,18,4],[18,10,20,10],[19,2,19,4],[20,2,20,4],[27,0,29,0],[27,2,27,4],[27,10,29,10],[28,2,28,4],[29,2,29,4],[24,0,26,0],[24,2,24,4],[24,10,26,10],[25,2,25,4],[26,2,26,4],[33,0,35,0],[33,2,33,4],[33,10,35,10],[34,2,34,4],[35,2,35,4],[30,0,32,0],[30,2,30,4],[30,10,32,10],[31,2,31,4],[32,2,32,4],[39,0,41,0],[39,2,39,4],[39,10,41,10],[40,2,40,4],[41,2,41,4],[36,0,38,0],[36,2,36,4],[36,10,38,10],[37,2,37,4],[38,2,38,4],[48,0,48,10],[49,0,49,10],[42,0,44,0],[42,2,42,4],[42,10,47,10],[43,2,43,4],[44,2,44,4],[45,0,47,0],[45,2,45,4],[46,2,46,4],[47,2,47,4]]}
[null,null,null,null,null,null,null,null,null,"記入日　","年　　月"]
["学年・児童名",null,null,null,"記入者","在籍学級担任",null,null,null,null,null,null,"在籍学級担任"]
["学習と行動のチェックリスト（小学校１、２学年用）",null,null,null,null,null,null,null,null,null,null,null,"巡回指導教員"]
["※評価：できる→A　　ほぼできる→B　　あまりできない→C　　できない→D　　未確認→未",null,null,null,null,null,null,null,null,null,null,null,"教科担当教員"]
[null,null,null,null,null,null,null,null,null,null,null,null,"特別支援教育コーディネーター"]
[null,"【達成度の目安】　A：80％以上　　B：80～50％　　C：50～30％　　D：30％以下　　",null,null,null,null,null,null,null,null,null,null,"その他"]
[]
[null,null,null,null,null,"評　　価"]
["区　分",null,"項　　　　目",null,null,"Ａ","Ｂ","Ｃ","Ｄ","未","備　　　考",null,null,null,null,null,null,null,null,4,3,2,1,0]
["１聞く","①","個別に出された口頭の指示を聞いて行動できる。",null,null,null,null,null,null,null,null,null,null,null,null,null,null,null,null,false,false,false,false,false]
[null,"②","一斉の指示を聞いて行動できる。",null,null,null,null,null,null,null,null,"１聞く",{"$f":"#REF!","v":{"$error":"#REF!"}},{"$f":"SUM(O11:R11)","v":0},{"$f":"T9*COUNTIF(T10:T12,TRUE)","v":0},{"$f":"U9*COUNTIF(U10:U12,TRUE)","v":0},0,0,0,false,false,false,false,false]
[null,"③","聞きまちがいなく、話の内容を覚えることができる。",null,null,null,null,null,null,null,null,null,null,null,null,null,null,null,null,false,false,false,false,false]
["２話す","①","単語の羅列ではなく、文として話をすることができる。",null,null,null,null,null,null,null,null,null,null,null,null,null,null,null,null,false,false,false,false,false]
[null,"②","自分の意思を教師に伝えることができる。",null,null,null,null,null,null,null,null,"２話す",{"$f":"#REF!","v":{"$error":"#REF!"}},{"$f":"SUM(O14:R14)","v":0},{"$f":"T9*COUNTIF(T13:T15,TRUE)","v":0},{"$f":"U9*COUNTIF(U13:U15,TRUE)","v":0},0,0,0,false,false,false,false,false]
[null,"③","教師に内容をわかりやすく伝えることができる。",null,null,null,null,null,null,null,null,null,null,null,null,null,null,null,null,false,false,false,false,false]
["３読む","①","既習の文字を読むことができる。",null,null,null,null,null,null,null,null,null,null,null,null,null,null,null,null,false,false,false,false,false]
[null,"②","学年で使用する教科書の一文を流ちょうに読むことができる。",null,null,null,null,null,null,null,null,"３読む",{"$f":"#REF!","v":{"$error":"#REF!"}},{"$f":"SUM(O17:R17)","v":0},{"$f":"T9*COUNTIF(T16:T18,TRUE)","v":0},{"$f":"U9*COUNTIF(U16:U18,TRUE)","v":0},0,0,0,false,false,false,false,false]
[null,"③","説明文の内容を読み取ることができる。",null,null,null,null,null,null,null,null,null,null,null,null,null,null,null,null,false,false,false,false,false]
["４書く","①","既習の文字を書くことができる。",null,null,null,null,null,null,null,null,null,null,null,null,null,null,null,null,false,false,false,false,false]
[null,"②","字の形や、大きさを整えて書くことができる。",null,null,null,null,null,null,null,null,"４書く",{"$f":"#REF!","v":{"$error":"#REF!"}},{"$f":"SUM(O20:R20)","v":0},{"$f":"T9*COUNTIF(T19:T21,TRUE)","v":0},{"$f":"U9*COUNTIF(U19:U21,TRUE)","v":0},0,0,0,false,false,false,false,false]
[null,"③","決められた時間内で板書を写すことができる。",null,null,null,null,null,null,null,null,null,null,null,null,null,null,null,null,false,false,false,false,false]
["５計算する","①","学年相応に簡単な計算ができる。",null,null,null,null,null,null,null,null,null,null,null,null,null,null,null,null,false,false,false,false,false]
[null,"②","学年相応に簡単な暗算ができる。",null,null,null,null,null,null,null,null,"５計算する",{"$f":"#REF!","v":{"$error":"#REF!"}},{"$f":"SUM(O23:R23)","v":0},{"$f":"T9*COUNTIF(T22:T24,TRUE)","v":0},{"$f":"U9*COUNTIF(U22:U24,TRUE)","v":0},0,0,0,false,false,false,false,false]
[null,"③","５、１０とまとめて数えることができる。",null,null,null,null,null,null,null,null,null,null,null,null,null,null,null,null,false,false,false,false,false]
["６推論","①","学年相応に図形を描くことができる。",null,null,null,null,null,null,null,null,null,null,null,null,null,null,null,null,false,false,false,false,false]
[null,"②","学年相応に量を比較することや、量を表す単位を理解することができる。",null,null,null,null,null,null,null,null,"６推論",{"$f":"#REF!","v":{"$error":"#REF!"}},{"$f":"SUM(O26:R26)","v":0},{"$f":"T9*COUNTIF(T25:T27,TRUE)","v":0},{"$f":"U9*COUNTIF(U25:U27,TRUE)","v":0},0,0,0,false,false,false,false,false]
[null,"③","手本や例示を基に考え、必要に応じて修正することができる。",null,null,null,null,null,null,null,null,null,null,null,null,null,null,null,null,false,false,false,false,false]
["　7姿勢・\n　 粗大運動","①","全身を使った運動ができる。（スキップ、ボール運動等）",null,null,null,null,null,null,null,null,null,null,null,null,null,null,null,null,false,false,false,false,false]
[null,"②","つま先立ちや片足立ちができる。",null,null,null,null,null,null,null,null,"７姿勢・粗大運動",{"$f":"#REF!","v":{"$error":"#REF!"}},{"$f":"SUM(O29:R29)","v":0},{"$f":"T9*COUNTIF(T28:T30,TRUE)","v":0},{"$f":"U9*COUNTIF(U28:U30,TRUE)","v":0},0,0,0,false,false,false,false,false]
[null,"③","スタートの合図で、全力疾走（30ｍ程度）ができる。",null,null,null,null,null,null,null,null,null,null,null,null,null,null,null,null,false,false,false,false,false]
["８微細運動","①","配られたプリント等を角を合わせて半分に折ることができる。",null,null,null,null,null,null,null,null,null,null,null,null,null,null,null,null,false,false,false,false,false]
[null,"②","線に沿って紙をはさみで切ることができる。",null,null,null,null,null,null,null,null,"８微細運動",{"$f":"#REF!","v":{"$error":"#REF!"}},{"$f":"SUM(O32:R32)","v":0},{"$f":"T9*COUNTIF(T31:T33,TRUE)","v":0},{"$f":"U9*COUNTIF(U31:U33,TRUE)","v":0},0,0,0,false,false,false,false,false]
[null,"③","箸を使うことができる。",null,null,null,null,null,null,null,null,null,null,null,null,null,null,null,null,false,false,false,false,false]
["９注意","①","身の回りの整理整頓や物の管理ができる。",null,null,null,null,null,null,null,null,null,null,null,null,null,null,null,null,false,false,false,false,false]
[null,"②","人の話に注意を向けて聞くことができる。",null,null,null,null,null,null,null,null,"９注意",{"$f":"#REF!","v":{"$error":"#REF!"}},{"$f":"SUM(O35:R35)","v":0},{"$f":"T9*COUNTIF(T34:T36,TRUE)","v":0},{"$f":"U9*COUNTIF(U34:U36,TRUE)","v":0},0,0,0,false,false,false,false,false]
[null,"③","最後まで集中してやり遂げることができる。",null,null,null,null,null,null,null,null,null,null,null,null,null,null,null,null,false,false,false,false,false]
["⒑行動","①","着席し、むやみに手足を動かさず、授業を受けることができる。",null,null,null,null,null,null,null,null,null,null,null,null,null,null,null,null,false,false,false,false,false]
[null,"②","そわそわせず落ち着いて行動することができる。",null,null,null,null,null,null,null,null,"１０行動",{"$f":"#REF!","v":{"$error":"#REF!"}},{"$f":"SUM(O38:R38)","v":0},{"$f":"T9*COUNTIF(T37:T39,TRUE)","v":0},{"$f":"U9*COUNTIF(U37:U39,TRUE)","v":0},0,0,0,false,false,false,false,false]
[null,"③","話の途中に割り込まず、最後まで人の話を聞くことができる。",null,null,null,null,null,null,null,null,null,null,null,null,null,null,null,null,false,false,false,false,false]
["⒒感情のコン\n　トロール","①","予定に変更が生じても順応した行動ができる。",null,null,null,null,null,null,null,null,null,null,null,null,null,null,null,null,false,false,false,false,false]
[null,"②","何かに固執しないで行動することができる。",null,null,null,null,null,null,null,null,"１１感情のコントロール",{"$f":"#REF!","v":{"$error":"#REF!"}},{"$f":"SUM(O41:R41)","v":0},{"$f":"T9*COUNTIF(T40:T42,TRUE)","v":0},{"$f":"U9*COUNTIF(U40:U42,TRUE)","v":0},0,0,0,false,false,false,false,false]
[null,"③","パニックを起こさず感情をコントロールすることができる。",null,null,null,null,null,null,null,null,null,null,null,null,null,null,null,null,false,false,false,false,false]
["⒓社会性\n （集団行動）","①","きまりを守った行動ができる。",null,null,null,null,null,null,null,null,null,null,null,null,null,null,null,null,false,false,false,false,false]
[null,"②","みんなと一緒の行動（集団行動）がとれる。",null,null,null,null,null,null,null,null,"１２社会性（集団行動）",{"$f":"#REF!","v":{"$error":"#REF!"}},{"$f":"SUM(O44:R44)","v":0},{"$f":"T9*COUNTIF(T43:T45,TRUE)","v":0},{"$f":"U9*COUNTIF(U43:U45,TRUE)","v":0},0,0,0,false,false,false,false,false]
[null,"③","場所をわきまえた行動がとれる。",null,null,null,null,null,null,null,null,null,null,null,null,null,null,null,null,false,false,false,false,false]
["⒔社会性\n（コミュニケーション）","①","友達と一緒にトラブルなく遊ぶことができる。",null,null,null,null,null,null,null,null,null,null,null,null,null,null,null,null,false,false,false,false,false]
[null,"②","人に対して親しみをもった発言や行動をすることができる。",null,null,null,null,null,null,null,null,"１３社会性（コミュニケーション）",{"$f":"#REF!","v":{"$error":"#REF!"}},{"$f":"SUM(O47:R47)","v":0},{"$f":"T9*COUNTIF(T46:T48,TRUE)","v":0},{"$f":"U9*COUNTIF(U46:U48,TRUE)","v":0},0,0,0,false,false,false,false,false]
[null,"③","相手に合わせた言葉づかいができる。",null,null,null,null,null,null,null,null,null,null,null,null,null,null,null,null,false,false,false,false,false]
["児童の得意な点や興味・関心のある事柄"]

{"sheet":"★（小学校３、４、５、6年）","index":1,"n_rows":49,"n_cols":24,"rows_kept":49,"cut":false,"hidden":false,"merged":[[9,10,11,10],[10,2,10,4],[11,2,11,4],[1,0,1,2],[1,5,1,9],[2,0,2,7],[2,9,2,10],[3,0,3,10],[5,1,5,9],[7,5,7,9],[8,0,8,1],[8,2,8,4],[9,0,11,0],[9,2,9,4],[15,0,17,0],[15,2,15,4],[15,10,17,10],[16,2,16,4],[17,2,17,4],[12,0,14,0],[12,2,12,4],[12,10,14,10],[13,2,13,4],[14,2,14,4],[21,0,23,0],[21,2,21,4],[21,10,23,10],[22,2,22,4],[23,2,23,4],[18,0,20,0],[18,2,18,4],[18,10,20,10],[19,2,19,4],[20,2,20,4],[27,0,29,0],[27,2,27,4],[27,10,29,10],[28,2,28,4],[29,2,29,4],[24,0,26,0],[24,2,24,4],[24,10,26,10],[25,2,25,4],[26,2,26,4],[33,0,35,0],[33,2,33,4],[33,10,35,10],[34,2,34,4],[35,2,35,4],[30,0,32,0],[30,2,30,4],[30,10,32,10],[31,2,31,4],[32,2,32,4],[39,0,41,0],[39,2,39,4],[39,10,41,10],[40,2,40,4],[41,2,41,4],[36,0,38,0],[36,2,36,4],[36,10,38,10],[37,2,37,4],[38,2,38,4],[48,0,48,10],[49,0,49,10],[42,0,44,0],[42,2,42,4],[42,10,47,10],[43,2,43,4],[44,2,44,4],[45,0,47,0],[45,2,45,4],[46,2,46,4],[47,2,47,4]]}
[null,null,null,null,null,null,null,null,null,"記入日　","年　　月"]
["学年・児童名",null,null,null,"記入者","在籍学級担任",null,null,null,null,null,null,"在籍学級担任"]
["学習と行動のチェックリスト（小学校３、4、5、6学年用）",null,null,null,null,null,null,null,null,null,null,null,"巡回指導教員"]
["※評価：できる→A　　ほぼできる→B　　あまりできない→C　　できない→D　　未確認→未",null,null,null,null,null,null,null,null,null,null,null,"教科担当教員"]
[null,null,null,null,null,null,null,null,null,null,null,null,"特別支援教育コーディネーター"]
[null,"【達成度の目安】　A：80％以上　　B：80～50％　　C：50～30％　　D：30％以下　　",null,null,null,null,null,null,null,null,null,null,"その他"]
[]
[null,null,null,null,null,"評　　価"]
["区　分",null,"項　　　　目",null,null,"Ａ","Ｂ","Ｃ","Ｄ","未","備　　　考",null,null,null,null,null,null,null,null,4,3,2,1,0]
["１聞く","①","個別に出された口頭の指示を聞いて行動できる。",null,null,null,null,null,null,null,null,null,null,null,null,null,null,null,null,false,false,false,false,false]
[null,"②","一斉の指示を聞いて行動できる。",null,null,null,null,null,null,null,null,"１聞く",{"$f":"#REF!","v":{"$error":"#REF!"}},{"$f":"SUM(O11:R11)","v":0},{"$f":"T9*COUNTIF(T10:T12,TRUE)","v":0},{"$f":"U9*COUNTIF(U10:U12,TRUE)","v":0},0,0,0,false,false,false,false,false]
[null,"③","聞きまちがいなく、話の内容を覚えることができる。",null,null,null,null,null,null,null,null,null,null,null,null,null,null,null,null,false,false,false,false,false]
["２話す","①","単語の羅列ではなく、文として話をすることができる。",null,null,null,null,null,null,null,null,null,null,null,null,null,null,null,null,false,false,false,false,false]
[null,"②","自分の意思を教師や友達に伝えることができる。",null,null,null,null,null,null,null,null,"２話す",{"$f":"#REF!","v":{"$error":"#REF!"}},{"$f":"SUM(O14:R14)","v":0},{"$f":"T9*COUNTIF(T13:T15,TRUE)","v":0},{"$f":"U9*COUNTIF(U13:U15,TRUE)","v":0},0,0,0,false,false,false,false,false]
[null,"③","経験したことを順序よく話すことができる。",null,null,null,null,null,null,null,null,null,null,null,null,null,null,null,null,false,false,false,false,false]
["３読む","①","既習の漢字を読むことができる。",null,null,null,null,null,null,null,null,null,null,null,null,null,null,null,null,false,false,false,false,false]
[null,"②","学年で使用する教科書の一文を流ちょうに読むことができる。",null,null,null,null,null,null,null,null,"３読む",{"$f":"#REF!","v":{"$error":"#REF!"}},{"$f":"SUM(O17:R17)","v":0},{"$f":"T9*COUNTIF(T16:T18,TRUE)","v":0},{"$f":"U9*COUNTIF(U16:U18,TRUE)","v":0},0,0,0,false,false,false,false,false]
[null,"③","説明文や物語文の内容を読み取ることができる。",null,null,null,null,null,null,null,null,null,null,null,null,null,null,null,null,false,false,false,false,false]
["４書く","①","既習の漢字を形や大きさを整えて書くことができる。",null,null,null,null,null,null,null,null,null,null,null,null,null,null,null,null,false,false,false,false,false]
[null,"②","決められた時間内で板書を写すことができる。",null,null,null,null,null,null,null,null,"４書く",{"$f":"#REF!","v":{"$error":"#REF!"}},{"$f":"SUM(O20:R20)","v":0},{"$f":"T9*COUNTIF(T19:T21,TRUE)","v":0},{"$f":"U9*COUNTIF(U19:U21,TRUE)","v":0},0,0,0,false,false,false,false,false]
[null,"③","話を聞いてメモにまとめることができる。",null,null,null,null,null,null,null,null,null,null,null,null,null,null,null,null,false,false,false,false,false]
["５計算する","①","学年相応に簡単な計算ができる。",null,null,null,null,null,null,null,null,null,null,null,null,null,null,null,null,false,false,false,false,false]
[null,"②","学年相応に簡単な筆算ができる。",null,null,null,null,null,null,null,null,"５計算する",{"$f":"#REF!","v":{"$error":"#REF!"}},{"$f":"SUM(O23:R23)","v":0},{"$f":"T9*COUNTIF(T22:T24,TRUE)","v":0},{"$f":"U9*COUNTIF(U22:U24,TRUE)","v":0},0,0,0,false,false,false,false,false]
[null,"③","かけ算九九を使って問題を解くことができる。",null,null,null,null,null,null,null,null,null,null,null,null,null,null,null,null,false,false,false,false,false]
["６推論","①","学年相応に図形を描くことができる。",null,null,null,null,null,null,null,null,null,null,null,null,null,null,null,null,false,false,false,false,false]
[null,"②","学年相応に量を比較することや、量を表す単位を理解することができる。",null,null,null,null,null,null,null,null,"６推論",{"$f":"#REF!","v":{"$error":"#REF!"}},{"$f":"SUM(O26:R26)","v":0},{"$f":"T9*COUNTIF(T25:T27,TRUE)","v":0},{"$f":"U9*COUNTIF(U25:U27,TRUE)","v":0},0,0,0,false,false,false,false,false]
[null,"③","目的に沿って行動を計画し、必要に応じて修正することができる。",null,null,null,null,null,null,null,null,null,null,null,null,null,null,null,null,false,false,false,false,false]
["　7姿勢・\n　 粗大運動","①","授業中に一定時間姿勢を保つことができる。",null,null,null,null,null,null,null,null,null,null,null,null,null,null,null,null,false,false,false,false,false]
[null,"②","全身を使った運動ができる。（スキップ、ボール運動、縄跳び等）",null,null,null,null,null,null,null,null,"７姿勢・粗大運動",{"$f":"#REF!","v":{"$error":"#REF!"}},{"$f":"SUM(O29:R29)","v":0},{"$f":"T9*COUNTIF(T28:T30,TRUE)","v":0},{"$f":"U9*COUNTIF(U28:U30,TRUE)","v":0},0,0,0,false,false,false,false,false]
[null,"③","身体を使った模倣ができる。",null,null,null,null,null,null,null,null,null,null,null,null,null,null,null,null,false,false,false,false,false]
["８微細運動","①","配られたプリント等を角を合わせて半分に折ることができる。",null,null,null,null,null,null,null,null,null,null,null,null,null,null,null,null,false,false,false,false,false]
[null,"②","はさみやコンパスを扱うことができる。",null,null,null,null,null,null,null,null,"８微細運動",{"$f":"#REF!","v":{"$error":"#REF!"}},{"$f":"SUM(O32:R32)","v":0},{"$f":"T9*COUNTIF(T31:T33,TRUE)","v":0},{"$f":"U9*COUNTIF(U31:U33,TRUE)","v":0},0,0,0,false,false,false,false,false]
[null,"③","箸で物をつまむことができる。",null,null,null,null,null,null,null,null,null,null,null,null,null,null,null,null,false,false,false,false,false]
["９注意","①","身の回りの整理整頓や物の管理ができる。",null,null,null,null,null,null,null,null,null,null,null,null,null,null,null,null,false,false,false,false,false]
[null,"②","人の話に注意を向けて聞くことができる。",null,null,null,null,null,null,null,null,"９注意",{"$f":"#REF!","v":{"$error":"#REF!"}},{"$f":"SUM(O35:R35)","v":0},{"$f":"T9*COUNTIF(T34:T36,TRUE)","v":0},{"$f":"U9*COUNTIF(U34:U36,TRUE)","v":0},0,0,0,false,false,false,false,false]
[null,"③","最後まで集中してやり遂げることができる。",null,null,null,null,null,null,null,null,null,null,null,null,null,null,null,null,false,false,false,false,false]
["⒑行動","①","着席し、むやみに手足を動かさず、授業を受けることができる。",null,null,null,null,null,null,null,null,null,null,null,null,null,null,null,null,false,false,false,false,false]
[null,"②","そわそわせず落ち着いて行動することができる。",null,null,null,null,null,null,null,null,"１０行動",{"$f":"#REF!","v":{"$error":"#REF!"}},{"$f":"SUM(O38:R38)","v":0},{"$f":"T9*COUNTIF(T37:T39,TRUE)","v":0},{"$f":"U9*COUNTIF(U37:U39,TRUE)","v":0},0,0,0,false,false,false,false,false]
[null,"③","話の途中に割り込まず、最後まで人の話を聞くことができる。",null,null,null,null,null,null,null,null,null,null,null,null,null,null,null,null,false,false,false,false,false]
["⒒感情のコン\n　トロール","①","予定に変更が生じても順応した行動ができる。",null,null,null,null,null,null,null,null,null,null,null,null,null,null,null,null,false,false,false,false,false]
[null,"②","何かに固執しないで行動することができる。",null,null,null,null,null,null,null,null,"１１感情のコントロール",{"$f":"#REF!","v":{"$error":"#REF!"}},{"$f":"SUM(O41:R41)","v":0},{"$f":"T9*COUNTIF(T40:T42,TRUE)","v":0},{"$f":"U9*COUNTIF(U40:U42,TRUE)","v":0},0,0,0,false,false,false,false,false]
[null,"③","パニックを起こさず感情をコントロールすることができる。",null,null,null,null,null,null,null,null,null,null,null,null,null,null,null,null,false,false,false,false,false]
["⒓社会性\n （集団行動）","①","きまりを守った行動ができる。",null,null,null,null,null,null,null,null,null,null,null,null,null,null,null,null,false,false,false,false,false]
[null,"②","みんなと一緒の行動（集団行動）がとれる。",null,null,null,null,null,null,null,null,"１２社会性（集団行動）",{"$f":"#REF!","v":{"$error":"#REF!"}},{"$f":"SUM(O44:R44)","v":0},{"$f":"T9*COUNTIF(T43:T45,TRUE)","v":0},{"$f":"U9*COUNTIF(U43:U45,TRUE)","v":0},0,0,0,false,false,false,false,false]
[null,"③","場所をわきまえた行動がとれる。",null,null,null,null,null,null,null,null,null,null,null,null,null,null,null,null,false,false,false,false,false]
["⒔社会性\n（コミュニケーション）","①","友達と一緒にトラブルなく遊ぶことができる。",null,null,null,null,null,null,null,null,null,null,null,null,null,null,null,null,false,false,false,false,false]
[null,"②","人に対して親しみをもった発言や行動をすることができる。",null,null,null,null,null,null,null,null,"１３社会性（コミュニケーション）",{"$f":"#REF!","v":{"$error":"#REF!"}},{"$f":"SUM(O47:R47)","v":0},{"$f":"T9*COUNTIF(T46:T48,TRUE)","v":0},{"$f":"U9*COUNTIF(U46:U48,TRUE)","v":0},0,0,0,false,false,false,false,false]
[null,"③","相手に合わせた言葉づかいができる。",null,null,null,null,null,null,null,null,null,null,null,null,null,null,null,null,false,false,false,false,false]
["児童の得意な点や興味・関心のある事柄"]

{"sheet":"★（中学生）","index":2,"n_rows":49,"n_cols":24,"rows_kept":49,"cut":false,"hidden":false,"merged":[[48,0,48,10],[49,0,49,10],[42,0,44,0],[42,2,42,4],[42,10,47,10],[43,2,43,4],[44,2,44,4],[45,0,47,0],[45,2,45,4],[46,2,46,4],[47,2,47,4],[36,0,38,0],[36,2,36,4],[36,10,38,10],[37,2,37,4],[38,2,38,4],[39,0,41,0],[39,2,39,4],[39,10,41,10],[40,2,40,4],[41,2,41,4],[30,0,32,0],[30,2,30,4],[30,10,32,10],[31,2,31,4],[32,2,32,4],[33,0,35,0],[33,2,33,4],[33,10,35,10],[34,2,34,4],[35,2,35,4],[24,0,26,0],[24,2,24,4],[24,10,26,10],[25,2,25,4],[26,2,26,4],[27,0,29,0],[27,2,27,4],[27,10,29,10],[28,2,28,4],[29,2,29,4],[18,0,20,0],[18,2,18,4],[18,10,20,10],[19,2,19,4],[20,2,20,4],[21,0,23,0],[21,2,21,4],[21,10,23,10],[22,2,22,4],[23,2,23,4],[12,0,14,0],[12,2,12,4],[12,10,14,10],[13,2,13,4],[14,2,14,4],[15,0,17,0],[15,2,15,4],[15,10,17,10],[16,2,16,4],[17,2,17,4],[9,10,11,10],[10,2,10,4],[11,2,11,4],[1,0,1,2],[1,5,1,9],[2,0,2,7],[2,9,2,10],[3,0,3,10],[5,1,5,9],[7,5,7,9],[8,0,8,1],[8,2,8,4],[9,0,11,0],[9,2,9,4]]}
[null,null,null,null,null,null,null,null,null,"記入日　","年　　月"]
["学年・生徒名",null,null,null,"記入者","在籍学級担任",null,null,null,null,null,null,"在籍学級担任"]
["学習と行動のチェックリスト（中学生用）",null,null,null,null,null,null,null,null,null,null,null,"巡回指導教員"]
["※評価：できる→A　　ほぼできる→B　　あまりできない→C　　できない→D　　未確認→未",null,null,null,null,null,null,null,null,null,null,null,"教科担当教員"]
[null,null,null,null,null,null,null,null,null,null,null,null,"特別支援教育コーディネーター"]
[null,"【達成度の目安】　A：80％以上　　B：80～50％　　C：50～30％　　D：30％以下　　",null,null,null,null,null,null,null,null,null,null,"その他"]
[]
[null,null,null,null,null,"評　　価"]
["区　分",null,"項　　　　目",null,null,"Ａ","Ｂ","Ｃ","Ｄ","未","備　　　考",null,null,null,null,null,null,null,null,4,3,2,1,0]
["１聞く","①","個別に出された口頭の指示を聞いて行動できる。",null,null,null,null,null,null,null,null,null,null,null,null,null,null,null,null,false,false,false,false,false]
[null,"②","一斉の指示を聞いて行動できる。",null,null,null,null,null,null,null,null,"１聞く",{"$f":"#REF!","v":{"$error":"#REF!"}},{"$f":"SUM(O11:R11)","v":0},{"$f":"T9*COUNTIF(T10:T12,TRUE)","v":0},{"$f":"U9*COUNTIF(U10:U12,TRUE)","v":0},0,0,0,false,false,false,false,false]
[null,"③","聞きまちがいなく、話の内容を覚えることができる。",null,null,null,null,null,null,null,null,null,null,null,null,null,null,null,null,false,false,false,false,false]
["２話す","①","適切な速さで、文としてスムースに話すことができる。",null,null,null,null,null,null,null,null,null,null,null,null,null,null,null,null,false,false,false,false,false]
[null,"②","自分の意思を適切に相手に伝えることができる。",null,null,null,null,null,null,null,null,"２話す",{"$f":"#REF!","v":{"$error":"#REF!"}},{"$f":"SUM(O14:R14)","v":0},{"$f":"T9*COUNTIF(T13:T15,TRUE)","v":0},{"$f":"U9*COUNTIF(U13:U15,TRUE)","v":0},0,0,0,false,false,false,false,false]
[null,"③","経験したことを順序よく話すことができる。",null,null,null,null,null,null,null,null,null,null,null,null,null,null,null,null,false,false,false,false,false]
["３読む","①","既習の漢字や英単語を読むことができる。",null,null,null,null,null,null,null,null,null,null,null,null,null,null,null,null,false,false,false,false,false]
[null,"②","学年で使用する教科書の一文を流ちょうに読むことができる。",null,null,null,null,null,null,null,null,"３読む",{"$f":"#REF!","v":{"$error":"#REF!"}},{"$f":"SUM(O17:R17)","v":0},{"$f":"T9*COUNTIF(T16:T18,TRUE)","v":0},{"$f":"U9*COUNTIF(U16:U18,TRUE)","v":0},0,0,0,false,false,false,false,false]
[null,"③","説明文や物語文の内容を読み取ることができる。",null,null,null,null,null,null,null,null,null,null,null,null,null,null,null,null,false,false,false,false,false]
["４書く","①","既習の漢字や英単語を書くことができる。",null,null,null,null,null,null,null,null,null,null,null,null,null,null,null,null,false,false,false,false,false]
[null,"②","決められた時間内で板書を正確に写すことができる。",null,null,null,null,null,null,null,null,"４書く",{"$f":"#REF!","v":{"$error":"#REF!"}},{"$f":"SUM(O20:R20)","v":0},{"$f":"T9*COUNTIF(T19:T21,TRUE)","v":0},{"$f":"U9*COUNTIF(U19:U21,TRUE)","v":0},0,0,0,false,false,false,false,false]
[null,"③","目的や意図に応じて、一定量の文章を書くことができる。",null,null,null,null,null,null,null,null,null,null,null,null,null,null,null,null,false,false,false,false,false]
["５計算する","①","整数２けた程度の四則計算ができる。",null,null,null,null,null,null,null,null,null,null,null,null,null,null,null,null,false,false,false,false,false]
[null,"②","複数の手続きを要する問題を解くことができる。（立式が２つ必要など）",null,null,null,null,null,null,null,null,"５計算する",{"$f":"#REF!","v":{"$error":"#REF!"}},{"$f":"SUM(O23:R23)","v":0},{"$f":"T9*COUNTIF(T22:T24,TRUE)","v":0},{"$f":"U9*COUNTIF(U22:U24,TRUE)","v":0},0,0,0,false,false,false,false,false]
[null,"③","定規やグラフの目盛りの読み取りができる。",null,null,null,null,null,null,null,null,null,null,null,null,null,null,null,null,false,false,false,false,false]
["６推論","①","学年相応に図形を描くことができる。",null,null,null,null,null,null,null,null,null,null,null,null,null,null,null,null,false,false,false,false,false]
[null,"②","学年相応の量を比較することや、量を表す単位を理解することができる。",null,null,null,null,null,null,null,null,"６推論",{"$f":"#REF!","v":{"$error":"#REF!"}},{"$f":"SUM(O26:R26)","v":0},{"$f":"T9*COUNTIF(T25:T27,TRUE)","v":0},{"$f":"U9*COUNTIF(U25:U27,TRUE)","v":0},0,0,0,false,false,false,false,false]
[null,"③","目的に沿って行動を計画し、必要に応じて修正することができる。",null,null,null,null,null,null,null,null,null,null,null,null,null,null,null,null,false,false,false,false,false]
["　7姿勢・\n　 粗大運動","①","授業中に一定時間姿勢を保つことができる。",null,null,null,null,null,null,null,null,null,null,null,null,null,null,null,null,false,false,false,false,false]
[null,"②","全身を使った運動ができる。（スキップ、ボール運動、縄跳び等）",null,null,null,null,null,null,null,null,"７姿勢・粗大運動",{"$f":"#REF!","v":{"$error":"#REF!"}},{"$f":"SUM(O29:R29)","v":0},{"$f":"T9*COUNTIF(T28:T30,TRUE)","v":0},{"$f":"U9*COUNTIF(U28:U30,TRUE)","v":0},0,0,0,false,false,false,false,false]
[null,"③","手本をまねてダンスなどをすることができる。",null,null,null,null,null,null,null,null,null,null,null,null,null,null,null,null,false,false,false,false,false]
["８微細運動","①","配られたプリント等を角を合わせて半分に折ることができる。",null,null,null,null,null,null,null,null,null,null,null,null,null,null,null,null,false,false,false,false,false]
[null,"②","鉛筆や筆の筆圧を調節することができる。",null,null,null,null,null,null,null,null,"８微細運動",{"$f":"#REF!","v":{"$error":"#REF!"}},{"$f":"SUM(O32:R32)","v":0},{"$f":"T9*COUNTIF(T31:T33,TRUE)","v":0},{"$f":"U9*COUNTIF(U31:U33,TRUE)","v":0},0,0,0,false,false,false,false,false]
[null,"③","蝶結びができる。",null,null,null,null,null,null,null,null,null,null,null,null,null,null,null,null,false,false,false,false,false]
["９注意","①","身の回りの整理整頓や物の管理ができる。",null,null,null,null,null,null,null,null,null,null,null,null,null,null,null,null,false,false,false,false,false]
[null,"②","人の話に注意を向けて聞くことができる。",null,null,null,null,null,null,null,null,"９注意",{"$f":"#REF!","v":{"$error":"#REF!"}},{"$f":"SUM(O35:R35)","v":0},{"$f":"T9*COUNTIF(T34:T36,TRUE)","v":0},{"$f":"U9*COUNTIF(U34:U36,TRUE)","v":0},0,0,0,false,false,false,false,false]
[null,"③","最後まで集中してやり遂げることができる。",null,null,null,null,null,null,null,null,null,null,null,null,null,null,null,null,false,false,false,false,false]
["⒑行動","①","着席し、むやみに手足を動かさず、授業を受けることができる。",null,null,null,null,null,null,null,null,null,null,null,null,null,null,null,null,false,false,false,false,false]
[null,"②","そわそわせず落ち着いて行動することができる。",null,null,null,null,null,null,null,null,"１０行動",{"$f":"#REF!","v":{"$error":"#REF!"}},{"$f":"SUM(O38:R38)","v":0},{"$f":"T9*COUNTIF(T37:T39,TRUE)","v":0},{"$f":"U9*COUNTIF(U37:U39,TRUE)","v":0},0,0,0,false,false,false,false,false]
[null,"③","話の途中に割り込まず、最後まで人の話を聞くことができる。",null,null,null,null,null,null,null,null,null,null,null,null,null,null,null,null,false,false,false,false,false]
["⒒感情のコン\n　トロール","①","予定に変更が生じても順応した行動ができる。",null,null,null,null,null,null,null,null,null,null,null,null,null,null,null,null,false,false,false,false,false]
[null,"②","何かに固執しないで行動することができる。",null,null,null,null,null,null,null,null,"１１感情のコントロール",{"$f":"#REF!","v":{"$error":"#REF!"}},{"$f":"SUM(O41:R41)","v":0},{"$f":"T9*COUNTIF(T40:T42,TRUE)","v":0},{"$f":"U9*COUNTIF(U40:U42,TRUE)","v":0},0,0,0,false,false,false,false,false]
[null,"③","パニックを起こさず感情をコントロールすることができる。",null,null,null,null,null,null,null,null,null,null,null,null,null,null,null,null,false,false,false,false,false]
["⒓社会性\n （集団行動）","①","きまりを守った行動ができる。",null,null,null,null,null,null,null,null,null,null,null,null,null,null,null,null,false,false,false,false,false]
[null,"②","みんなと一緒の行動（集団行動）がとれる。",null,null,null,null,null,null,null,null,"１２社会性（集団行動）",{"$f":"#REF!","v":{"$error":"#REF!"}},{"$f":"SUM(O44:R44)","v":0},{"$f":"T9*COUNTIF(T43:T45,TRUE)","v":0},{"$f":"U9*COUNTIF(U43:U45,TRUE)","v":0},0,0,0,false,false,false,false,false]
[null,"③","場所をわきまえた行動がとれる。",null,null,null,null,null,null,null,null,null,null,null,null,null,null,null,null,false,false,false,false,false]
["⒔社会性\n（コミュニケーション）","①","休み時間など、友達と一緒にトラブルなく過ごすことができる。",null,null,null,null,null,null,null,null,null,null,null,null,null,null,null,null,false,false,false,false,false]
[null,"②","人に対して親しみや思いやりをもった発言や行動をすることができる。",null,null,null,null,null,null,null,null,"１３社会性（コミュニケーション）",{"$f":"#REF!","v":{"$error":"#REF!"}},{"$f":"SUM(O47:R47)","v":0},{"$f":"T9*COUNTIF(T46:T48,TRUE)","v":0},{"$f":"U9*COUNTIF(U46:U48,TRUE)","v":0},0,0,0,false,false,false,false,false]
[null,"③","相手に合わせた言葉づかいができる。",null,null,null,null,null,null,null,null,null,null,null,null,null,null,null,null,false,false,false,false,false]
["生徒の得意な点や興味・関心のある事柄"]